lending/lending_fUSD_20241120
["ID","MTS","AMOUNT","RATE_DAILY","PERIOD"]
[342804016,1732143117363,-151.0,0.00056712,120]
[342804017,1732143117372,-500.0,0.00056712,120]
[342804018,1732143117382,-3622.31,0.00056712,120]
[342804019,1732143117391,-502.6,0.00056712,120]
[342804020,1732143117401,-500.0,0.00056712,120]
[342804021,1732143117411,-500.0,0.00056712,120]
[342804022,1732143117420,-500.0,0.00056712,120]
[342804023,1732143117429,-1317.84,0.00056712,120]
[342804024,1732143117439,-1518.89,0.00056712,90]
[342804025,1732143117448,-151.0,0.00056712,120]
[342804026,1732143117458,-1643.31,0.00056712,120]
[342804027,1732143117467,-1298.63,0.00056712,120]
[342804028,1732143117476,-943.47,0.00056712,120]
[342804029,1732143117486,-500.0,0.00056712,120]
[342804030,1732143117495,-1649.32,0.00056712,120]
[342804031,1732143117504,-550.87,0.00056712,120]
[342804032,1732143117514,-5640.48,0.00056712,120]
[342804033,1732143117524,-2158.9,0.00056712,120]
[342804034,1732143117533,-500.0,0.00056712,120]
[342804035,1732143117543,-1165.26,0.00056712,120]
[342804036,1732143117553,-1244.51,0.00056712,120]
[342804037,1732143117562,-500.0,0.00056712,120]
[342804038,1732143117572,-279.63868264,0.00056712,120]
[342804039,1732143117582,-151.0,0.00056712,120]
[342804040,1732143117591,-500.0,0.00056712,120]
[342804041,1732143117601,-500.9256,0.00056712,120]
[342804042,1732143117610,-9870.91,0.00056712,120]
[342804043,1732143117619,-1110.14,0.00056712,120]
[342804044,1732143117628,-986.78,0.00056712,120]
[342804045,1732143117638,-567.02,0.00056712,120]
[342804046,1732143117647,-500.9256,0.00056712,120]
[342804047,1732143117657,-500.0,0.00056712,120]
[342804048,1732143117666,-651.9,0.00056712,120]
[342804049,1732143117676,-503.25602715,0.00056712,120]
[342804050,1732143117695,-500.0,0.00056712,120]
[342804051,1732143117704,-3368.96,0.00056712,120]
[342804052,1732143117713,-500.0,0.00056712,120]
[342804053,1732143117723,-6243.58,0.00056712,120]
[342804054,1732143117733,-500.0,0.00056712,120]
[342804055,1732143117742,-1221.81,0.00056712,120]
[342804056,1732143117751,-1021.75,0.00056712,120]
[342804057,1732143117760,-500.0,0.00056712,120]
[342804058,1732143117769,-1378.96,0.00056712,120]
[342804059,1732143117778,-500.0,0.00056712,120]
[342804060,1732143117787,-1402.48,0.00056712,120]
[342804061,1732143117796,-2324.89,0.00056712,120]
[342804062,1732143117806,-1098.99,0.00056712,7]
[342804063,1732143117816,-500.0,0.00056712,120]
[342804064,1732143117825,-500.0,0.00056712,120]
[342804065,1732143117835,-3357.52,0.00056712,120]
[342804066,1732143117844,-500.0,0.00056712,120]
[342804067,1732143117853,-151.0,0.00056712,120]
[342804068,1732143117863,-631.52,0.00056712,120]
[342804069,1732143117873,-1503.83,0.00056712,120]
[342804070,1732143117882,-500.0,0.00056712,120]
[342804071,1732143117895,-610.46,0.00056712,120]
[342804072,1732143117905,-4485.14,0.00056712,120]
[342804073,1732143117915,-500.0,0.00056712,120]
[342804074,1732143117924,-676.3,0.00056712,120]
[342804075,1732143117937,-1449.22,0.00056712,120]
[342804076,1732143117947,-802.14,0.00056712,120]
[342804077,1732143117959,-1005.77,0.00056712,120]
[342804078,1732143117971,-62267.29,0.00056712,5]
[342804079,1732143117981,-500.0,0.00056712,120]
[342804080,1732143117991,-500.0,0.00056712,120]
[342804081,1732143118002,-1000.0,0.00056712,120]
[342804082,1732143118011,-500.0,0.00056712,120]
[342804083,1732143118022,-500.0,0.00056712,120]
[342804084,1732143118031,-428.55239809,0.00056712,120]
[342804085,1732143118042,-1200.11,0.00056712,120]
[342804086,1732143118052,-500.0,0.00056712,120]
[342804087,1732143118063,-4633.73,0.00056712,120]
[342804088,1732143118072,-1462.06,0.00056712,120]
[342804089,1732143118082,-1071.61,0.00056712,120]
[342804090,1732143118093,-1246.53,0.00056712,120]
[342804091,1732143118104,-500.0,0.00056712,120]
[342804092,1732143118114,-665.76,0.00056712,120]
[342804093,1732143118125,-1619.4,0.00056712,120]
[342804094,1732143118135,-4155.63,0.00056712,120]
[342804095,1732143118146,-534.16,0.00056712,120]
[342804096,1732143118156,-500.0,0.00056712,120]
[342804097,1732143118167,-500.0,0.00056712,120]
[342804098,1732143118177,-716.03,0.00056712,120]
[342804099,1732143118187,-710.7,0.00056712,120]
[342804100,1732143118290,-1328.15,0.00056712,120]
[342804101,1732143118304,-3842.23,0.00056712,120]
[342804102,1732143118314,-1770.4,0.00056712,120]
[342804103,1732143118323,-1828.16,0.00056712,120]
[342804104,1732143118333,-734.2,0.00056712,120]
[342804105,1732143118343,-500.0,0.00056712,120]
[342804106,1732143118352,-500.0,0.00056712,120]
[342804107,1732143118362,-4113.57,0.00056712,120]
[342804108,1732143118372,-3361.09,0.00056712,120]
[342804109,1732143118382,-2336.41,0.00056712,120]
[342804110,1732143118392,-914.26,0.00056712,120]
[342804111,1732143118403,-1225.66,0.00056712,120]
[342804112,1732143118412,-2227.59,0.00056712,120]
[342804113,1732143118422,-1199.34,0.00056712,120]
[342804114,1732143118432,-500.0,0.00056712,120]
[342804115,1732143118442,-818.4,0.00056712,120]
[342804116,1732143118452,-4656.57,0.00056712,120]
[342804117,1732143118461,-500.0,0.00056712,120]
[342804118,1732143118471,-945.67,0.00056712,120]
[342804119,1732143118480,-656.2,0.00056712,120]
[342804120,1732143118490,-500.0,0.00056712,120]
[342804121,1732143118499,-1601.15,0.00056712,120]
[342804122,1732143118508,-2590.51,0.00056712,120]
[342804123,1732143118519,-500.0,0.00056712,120]
[342804124,1732143118529,-500.0,0.00056712,120]
[342804125,1732143118539,-1087.48,0.00056712,120]
[342804126,1732143118549,-617.4,0.00056712,120]
[342804127,1732143118559,-500.0,0.00056712,120]
[342804128,1732143118568,-500.0,0.00056712,120]
[342804129,1732143118578,-1021.22,0.00056712,120]
[342804130,1732143118587,-500.0,0.00056712,120]
[342804131,1732143118596,-530.21,0.00056712,120]
[342804132,1732143118606,-4078.12,0.00056712,120]
[342804133,1732143118615,-609.85,0.00056712,120]
[342804134,1732143118625,-500.0,0.00056712,120]
[342804135,1732143118634,-1271.08,0.00056712,120]
[342804136,1732143118644,-630.13,0.00056712,120]
[342804137,1732143118655,-589.46383786,0.00056712,120]
[342804138,1732143118664,-1053.42,0.00056712,120]
[342804139,1732143118674,-868.75,0.00056712,120]
[342804140,1732143118686,-3054.48,0.00056712,120]
[342804141,1732143118696,-10737.37,0.00056712,21]
[342804142,1732143118706,-772.0,0.00056712,120]
[342804143,1732143118715,-500.0,0.00056712,120]
[342804144,1732143118725,-1615.7,0.00056712,120]
[342804145,1732143118734,-790.82,0.00056712,120]
[342804146,1732143118744,-500.0,0.00056712,120]
[342804147,1732143118754,-500.0,0.00056712,120]
[342804148,1732143118764,-500.0,0.00056712,120]
[342804149,1732143118773,-500.0,0.00056712,120]
[342804150,1732143118784,-500.0,0.00056712,120]
[342804151,1732143118793,-501.30141443,0.00056712,120]
[342804152,1732143118803,-2780.77,0.00056712,120]
[342804153,1732143118812,-500.0,0.00056712,120]
[342804154,1732143118822,-3170.06,0.00056712,120]
[342804155,1732143118833,-530.51,0.00056712,120]
[342804156,1732143118842,-500.0,0.00056712,120]
[342804157,1732143118852,-814.28,0.00056712,120]
[342804158,1732143118862,-500.0,0.00056712,120]
[342804159,1732143118871,-500.0,0.00056712,120]
[342804160,1732143118881,-500.0,0.00056712,120]
[342804161,1732143118891,-4610.65,0.00056712,120]
[342804162,1732143118902,-1053.94,0.00056712,120]
[342804163,1732143118911,-832.21,0.00056712,120]
[342804164,1732143118921,-559.12,0.00056712,120]
[342804165,1732143118932,-500.0,0.00056712,120]
[342804166,1732143118942,-500.0,0.00056712,120]
[342804167,1732143118952,-962.23,0.00056712,120]
[342804168,1732143118961,-500.0,0.00056712,120]
[342804169,1732143118974,-630.95,0.00056712,120]
[342804170,1732143118983,-7093.52,0.00056712,120]
[342804171,1732143118993,-1497.99,0.00056712,120]
[342804172,1732143119003,-3030.53,0.00056712,120]
[342804173,1732143119013,-2002.76,0.00056712,120]
[342804174,1732143119023,-4996.62,0.00056712,120]
[342804175,1732143119033,-1038.47,0.00056712,120]
[342804176,1732143119043,-500.0,0.00056712,120]
[342804177,1732143119052,-3755.03,0.00056712,120]
[342804178,1732143119063,-500.0,0.00056712,120]
[342804179,1732143119072,-500.33,0.00056712,120]
[342804180,1732143119082,-619.43,0.00056712,120]
[342804181,1732143119092,-1395.84,0.00056712,120]
[342804182,1732143119102,-4210.05,0.00056712,120]
[342804183,1732143119111,-6717.87,0.00056712,120]
[342804184,1732143119121,-500.0,0.00056712,120]
[342804185,1732143119132,-4619.32,0.00056712,120]
[342804186,1732143119142,-2125.56,0.00056712,120]
[342804187,1732143119151,-500.0,0.00056712,120]
[342804188,1732143119161,-1522.48,0.00056712,120]
[342804189,1732143119170,-500.0,0.00056712,120]
[342804190,1732143119179,-2913.49,0.00056712,120]
[342804191,1732143119189,-500.0,0.00056712,120]
[342804192,1732143119198,-500.0,0.00056712,120]
[342804193,1732143119208,-6408.58,0.00056712,60]
[342804194,1732143119218,-8536.13,0.00056712,120]
[342804195,1732143119227,-500.0,0.00056712,120]
[342804196,1732143119236,-931.52,0.00056712,120]
[342804197,1732143119246,-5185.83,0.00056712,120]
[342804198,1732143119255,-500.0,0.00056712,120]
[342804199,1732143119265,-873.24,0.00056712,120]
[342804200,1732143119274,-1838.8,0.00056712,120]
[342804201,1732143119283,-500.0,0.00056712,120]
[342804202,1732143119292,-1525.45,0.00056712,120]
[342804203,1732143119302,-1373.0,0.00056712,120]
[342804204,1732143119313,-1659.86,0.00056712,120]
[342804205,1732143119324,-500.0,0.00056712,120]
[342804206,1732143119335,-500.0,0.00056712,120]
[342804207,1732143119346,-5907.77,0.00056712,120]
[342804208,1732143119355,-647.02,0.00056712,120]
[342804209,1732143119365,-1210.69,0.00056712,120]
[342804210,1732143119376,-500.0,0.00056712,120]
[342804211,1732143119385,-500.0,0.00056712,120]
[342804212,1732143119395,-526.64,0.00056712,120]
[342804213,1732143119407,-12504.89,0.00056712,120]
[342804214,1732143119417,-2076.98,0.00056712,120]
[342804215,1732143119428,-1181.36,0.00056712,120]
[342804216,1732143119439,-677.21,0.00056712,120]
[342804217,1732143119448,-2434.04,0.00056712,120]
[342804218,1732143119458,-1109.03,0.00056712,120]
[342804219,1732143119467,-330.7014335,0.00056712,120]
[342804220,1732143119476,-553.05943803,0.00056712,120]
[342804221,1732143119485,-1099.32,0.00056712,120]
[342804222,1732143119495,-4681.73,0.00056712,120]
[342804223,1732143119504,-651.95,0.00056712,120]
[342804224,1732143119514,-1502.22,0.00056712,120]
[342804225,1732143119523,-757.95,0.00056712,120]
[342804226,1732143119532,-986.66,0.00056712,120]
[342804227,1732143119542,-500.0,0.00056712,120]
[342804228,1732143119551,-880.48,0.00056712,120]
[342804229,1732143119561,-500.0,0.00056712,120]
[342804230,1732143119570,-1166.87,0.00056712,120]
[342804231,1732143119579,-1450.31,0.00056712,120]
[342804232,1732143119591,-2144.4,0.00056712,120]
[342804233,1732143119601,-548.14,0.00056712,120]
[342804234,1732143119610,-516.0334843,0.00056712,120]
[342804235,1732143119619,-1032.14,0.00056712,120]
[342804236,1732143119628,-14474.38,0.00056712,120]
[342804237,1732143119638,-16729.96,0.00056712,120]
[342804238,1732143119648,-564.06548817,0.00056712,120]
[342804239,1732143119659,-500.0,0.00056712,120]
[342804240,1732143119669,-500.0,0.00056712,120]
[342804241,1732143119678,-500.0,0.00056712,120]
[342804242,1732143119689,-500.0,0.00056712,120]
[342804243,1732143119699,-2375.8,0.00056712,120]
[342804244,1732143119708,-533.88,0.00056712,120]
[342804245,1732143119717,-726.78,0.00056712,120]
[342804246,1732143119727,-500.0,0.00056712,120]
[342804247,1732143119738,-3517.73,0.00056712,120]
[342804248,1732143119747,-500.0,0.00056712,120]
[342804249,1732143119756,-2949.54,0.00056712,120]
[342804250,1732143119766,-500.0,0.00056712,120]
[342804251,1732143119775,-680.36,0.00056712,120]
[342804252,1732143119784,-629.45,0.00056712,120]
[342804253,1732143119794,-500.0,0.00056712,120]
[342804254,1732143119804,-1835.32,0.00056712,120]
[342804255,1732143119815,-500.0,0.00056712,120]
[342804256,1732143119824,-1077.92,0.00056712,120]
[342804257,1732143119835,-567.38,0.00056712,120]
[342804258,1732143119845,-1270.02,0.00056712,120]
[342804259,1732143119854,-1080.78,0.00056712,120]
[342804260,1732143119865,-500.0,0.00056712,120]
[342804261,1732143119875,-500.0,0.00056712,120]
[342804262,1732143119884,-794.46,0.00056712,120]
[342804263,1732143119897,-730.91,0.00056712,120]
[342804264,1732143119907,-500.0,0.00056712,120]
[342804265,1732143119916,-836.47,0.00056712,120]
[342804266,1732143119926,-1006.93,0.00056712,120]
[342804267,1732143119937,-877.06,0.00056712,120]
[342804268,1732143119946,-873.31,0.00056712,120]
[342804269,1732143119955,-500.0,0.00056712,120]
[342804270,1732143119967,-897.49,0.00056712,120]
[342804271,1732143119976,-5067.66,0.00056712,120]
[342804272,1732143119986,-455.26570248,0.00056712,120]
[342804273,1732143119995,-500.0,0.00056712,120]
[342804274,1732143120005,-500.0,0.00056712,120]
[342804275,1732143120015,-615.04,0.00056712,120]
[342804276,1732143120024,-1213.36,0.00056712,120]
[342804277,1732143120035,-537.82,0.00056712,120]
[342804278,1732143120044,-500.0,0.00056712,120]
[342804279,1732143120054,-500.0,0.00056712,120]
[342804280,1732143120064,-500.0,0.00056712,120]
[342804281,1732143120073,-911.56,0.00056712,120]
[342804282,1732143120083,-1001.49,0.00056712,120]
[342804283,1732143120093,-1621.15,0.00056712,120]
[342804284,1732143120102,-1004.9,0.00056712,120]
[342804285,1732143120113,-1363.03,0.00056712,120]
[342804286,1732143120123,-670.6,0.00056712,120]
[342804287,1732143120133,-4519.72,0.00056712,120]
[342804288,1732143120142,-681.14,0.00056712,120]
[342804289,1732143120152,-597.02,0.00056712,120]
[342804290,1732143120164,-151.0,0.00056712,120]
[342804291,1732143120174,-500.0,0.00056712,120]
[342804292,1732143120185,-1529.3,0.00056712,120]
[342804293,1732143120195,-500.0,0.00056712,120]
[342804294,1732143120205,-500.0,0.00056712,120]
[342804295,1732143120215,-5382.48,0.00056712,120]
[342804296,1732143120225,-2209.36,0.00056712,120]
[342804297,1732143120236,-640.41,0.00056712,120]
[342804298,1732143120246,-1045.28,0.00056712,120]
[342804299,1732143120257,-500.0,0.00056712,120]
[342804300,1732143120267,-151.0,0.00056712,120]
[342804301,1732143120276,-500.0,0.00056712,120]
[342804302,1732143120286,-5113.62,0.00056712,120]
[342804303,1732143120296,-3525.53,0.00056712,120]
[342804304,1732143120306,-500.0,0.00056712,120]
[342804305,1732143120315,-5128.91,0.00056712,120]
[342804306,1732143120324,-909.91,0.00056712,120]
[342804307,1732143120334,-11180.31667097,0.000568,120]
[342804308,1732143120344,-4081.0,0.00056808,117]
[342804309,1732143120354,-176.247,0.0005688,120]
[342804310,1732143120363,-151.0,0.000569,120]
[342804311,1732143120372,-151.0,0.000569,120]
[342804312,1732143120381,-151.0,0.000569,120]
[342804313,1732143120391,-500.0,0.00056986,120]
[342804314,1732143120400,-500.0,0.00056986,120]
[342804315,1732143120412,-500.0,0.00056986,120]
[342804316,1732143120422,-500.0,0.00056986,120]
[342804317,1732143120433,-949.28,0.00056986,120]
[342804318,1732143120444,-588.18,0.00056986,120]
[342804319,1732143120454,-500.0,0.00056986,120]
[342804320,1732143120464,-500.0,0.00056986,120]
[342804321,1732143120474,-216.87,0.00056986,7]
[342804322,1732143120486,-500.0,0.00056986,120]
[342804323,1732143120497,-1647.84,0.00056986,120]
[342804324,1732143120507,-500.0,0.00056986,120]
[342804325,1732143120516,-672.22,0.00056986,120]
[342804326,1732143120526,-901.77,0.00056986,120]
[342804327,1732143120535,-500.0,0.00056986,120]
[342804328,1732143120545,-749.97,0.00056986,120]
[342804329,1732143120554,-500.0,0.00056986,120]
[342804330,1732143120564,-1584.28,0.00056986,120]
[342804331,1732143120575,-500.0,0.00056986,120]
[342804332,1732143120585,-500.0,0.00056986,120]
[342804333,1732143120596,-500.0,0.00056986,120]
[342804334,1732143120607,-698.15,0.00056986,120]
[342804335,1732143120618,-500.0,0.00056986,120]
[342804336,1732143120629,-500.0,0.00056986,120]
[342804337,1732143120641,-500.0,0.00056986,120]
[342804338,1732143120651,-500.0,0.00056986,120]
[342804339,1732143120661,-550.21,0.00056986,120]
[342804340,1732143120672,-1189.95746126,0.00056986,30]
[342804341,1732143120683,-838.1,0.00056986,120]
[342804342,1732143120692,-500.0,0.00056986,120]
[342804343,1732143120702,-500.0,0.00056986,120]
[342804344,1732143120711,-678.26,0.00056986,120]
[342804345,1732143120720,-500.0,0.00056986,120]
[342804346,1732143120731,-528.71,0.00056986,120]
[342804347,1732143120741,-577.89,0.00056986,120]
[342804348,1732143120751,-1058.89,0.00056986,120]
[342804349,1732143120762,-500.0,0.00056986,120]
[342804350,1732143120772,-500.0,0.00056986,120]
[342804351,1732143120782,-516.05,0.00056986,120]
[342804352,1732143120792,-500.0,0.00056986,120]
[342804353,1732143120802,-500.0,0.00056986,120]
[342804354,1732143120811,-1582.8,0.00056986,120]
[342804355,1732143120821,-512.91,0.00056986,120]
[342804356,1732143120831,-910.7,0.00056986,120]
[342804357,1732143120841,-500.0,0.00056986,120]
[342804358,1732143120851,-686.07,0.00056986,120]
[342804359,1732143120861,-500.0,0.00056986,120]
[342804360,1732143120871,-718.84,0.00056986,120]
[342804361,1732143120881,-500.0,0.00056986,120]
[342804362,1732143120894,-566.64,0.00056986,120]
[342804363,1732143120904,-500.0,0.00056986,120]
[342804364,1732143120915,-581.13,0.00056986,120]
[342804365,1732143120926,-558.19,0.00056986,120]
[342804366,1732143120937,-1275.31,0.00056986,120]
[342804367,1732143120947,-500.0,0.00056986,120]
[342804368,1732143120956,-500.0,0.00056986,120]
[342804369,1732143120968,-221.59215189,0.00056986,120]
[342804370,1732143120978,-646.55,0.00056986,120]
[342804371,1732143120988,-500.0,0.00056986,120]
[342804372,1732143120998,-889.52,0.00056986,120]
[342804373,1732143121008,-500.0,0.00056986,120]
[342804374,1732143121018,-1844.67,0.00056986,120]
[342804375,1732143121028,-1345.16,0.00056986,120]
[342804376,1732143121038,-500.0,0.00056986,120]
[342804377,1732143121048,-1354.36,0.00056986,120]
[342804378,1732143121059,-500.0,0.00056986,120]
[342804379,1732143121069,-504.89672898,0.00056986,120]
[342804380,1732143121079,-1126.54,0.00056986,120]
[342804381,1732143121088,-810.54,0.00056986,120]
[342804382,1732143121098,-1630.49,0.00056986,120]
[342804383,1732143121108,-1539.37,0.00056986,120]
[342804384,1732143121118,-1061.11,0.00056986,120]
[342804385,1732143121127,-500.0,0.00056986,120]
[342804386,1732143121138,-333.42465644,0.00056986,120]
[342804387,1732143121147,-616.53,0.00056986,120]
[342804388,1732143121157,-500.0,0.00056986,120]
[342804389,1732143121166,-1163.7,0.00056986,120]
[342804390,1732143121176,-500.0,0.00056986,120]
[342804391,1732143121186,-500.0,0.00056986,120]
[342804392,1732143121196,-1697.48,0.00056986,120]
[342804393,1732143121206,-500.0,0.00056986,120]
[342804394,1732143121216,-768.83,0.00056986,120]
[342804395,1732143121226,-1494.04,0.00056986,120]
[342804396,1732143121236,-583.76,0.00056986,120]
[342804397,1732143121246,-500.0,0.00056986,120]
[342804398,1732143121256,-500.0,0.00056986,120]
[342804399,1732143121266,-500.0,0.00056986,120]
[342804400,1732143121276,-500.0,0.00056986,120]
[342804401,1732143121286,-1417.12,0.00056986,120]
[342804402,1732143121295,-500.0,0.00056986,120]
[342804403,1732143121305,-242.37442092,0.00056986,120]
[342804404,1732143121314,-514.86,0.00056986,120]
[342804405,1732143121324,-580.28,0.00056986,120]
[342804406,1732143121333,-183.81562913,0.00056986,120]
[342804407,1732143121344,-500.0,0.00056986,120]
[342804408,1732143121353,-500.0,0.00056986,120]
[342804409,1732143121363,-500.0,0.00056986,120]
[342804410,1732143121373,-625.85,0.00056986,120]
[342804411,1732143121383,-500.0,0.00056986,120]
[342804412,1732143121394,-835.63,0.00056986,120]
[342804413,1732143121404,-500.0,0.00056986,120]
[342804414,1732143121414,-1642.42,0.00056986,7]
[342804415,1732143121425,-500.0,0.00056986,120]
[342804416,1732143121435,-188.7304482,0.00056986,14]
[342804417,1732143121445,-1168.69,0.00056986,120]
[342804418,1732143121455,-500.0,0.00056986,120]
[342804419,1732143121466,-785.67,0.00056986,120]
[342804420,1732143121477,-151.0,0.00056986,120]
[342804421,1732143121489,-526.48,0.00056986,120]
[342804422,1732143121498,-1791.8,0.00056986,120]
[342804423,1732143121509,-500.0,0.00056986,120]
[342804424,1732143121519,-500.0,0.00056986,120]
[342804425,1732143121530,-500.0,0.00056986,120]
[342804426,1732143121539,-500.0,0.00056986,120]
[342804427,1732143121549,-500.0,0.00056986,120]
[342804428,1732143121559,-764.29,0.00056986,120]
[342804429,1732143121569,-937.69,0.00056986,120]
[342804430,1732143121579,-830.14,0.00056986,120]
[342804431,1732143121589,-500.0,0.00056986,58]
[342804432,1732143121599,-500.0,0.00056986,120]
[342804433,1732143121610,-500.0,0.00056986,120]
[342804434,1732143121621,-1926.82,0.00056986,120]
[342804435,1732143121631,-151.0,0.00056986,120]
[342804436,1732143121642,-500.0,0.00056986,30]
[342804437,1732143121652,-513.97,0.00056986,120]
[342804438,1732143121662,-500.0,0.00056986,120]
[342804439,1732143121672,-1258.94,0.00056986,120]
[342804440,1732143121683,-151.0,0.00056986,120]
[342804441,1732143121693,-615.91,0.00056986,120]
[342804442,1732143121703,-504.95525335,0.00056986,120]
[342804443,1732143121714,-739.53,0.00056986,120]
[342804444,1732143121724,-500.0,0.00056986,120]
[342804445,1732143121734,-2364.09,0.00056986,120]
[342804446,1732143121743,-500.0,0.00056986,120]
[342804447,1732143121754,-1516.8,0.00056986,120]
[342804448,1732143121765,-644.03,0.00056986,120]
[342804449,1732143121775,-1222.69,0.00056986,120]
[342804450,1732143121785,-689.07,0.00056986,120]
[342804451,1732143121795,-2792.61,0.00056986,120]
[342804452,1732143121805,-500.0,0.00056986,120]
[342804453,1732143121816,-151.0,0.00056986,120]
[342804454,1732143121826,-598.66,0.00056986,120]
[342804455,1732143121836,-696.8,0.00056986,120]
[342804456,1732143121847,-517.71,0.00056986,120]
[342804457,1732143121857,-670.6,0.00056986,120]
[342804458,1732143121867,-1622.41,0.00056986,120]
[342804459,1732143121876,-500.0,0.00056986,120]
[342804460,1732143121887,-732.47,0.00056986,120]
[342804461,1732143121901,-500.0,0.00056986,120]
[342804462,1732143121912,-500.0,0.00056986,120]
[342804463,1732143121922,-567.94106312,0.00056986,120]
[342804464,1732143121933,-500.0,0.00056986,120]
[342804465,1732143121943,-3752.95,0.00056986,120]
[342804466,1732143121954,-694.86,0.00056986,120]
[342804467,1732143121964,-500.0,0.00056986,120]
[342804468,1732143121975,-560.23301469,0.00056986,120]
[342804469,1732143121986,-500.0,0.00056986,120]
[342804470,1732143121997,-527.72,0.00056986,120]
[342804471,1732143122007,-2754.45,0.00056986,120]
[342804472,1732143122017,-500.0,0.00056986,120]
[342804473,1732143122027,-500.0,0.00056986,60]
[342804474,1732143122038,-1552.42,0.00056986,120]
[342804475,1732143122049,-777.0,0.00056986,120]
[342804476,1732143122059,-750.37,0.00056986,120]
[342804477,1732143122070,-586.88,0.00056986,120]
[342804478,1732143122080,-500.0,0.00056986,120]
[342804479,1732143122090,-546.79,0.00056986,120]
[342804480,1732143122100,-500.0,0.00056986,120]
[342804481,1732143122111,-1410.35,0.00056986,120]
[342804482,1732143122121,-622.81,0.00056986,120]
[342804483,1732143122131,-500.0,0.00056986,120]
[342804484,1732143122142,-1078.42,0.00056986,120]
[342804485,1732143122152,-2348.91,0.00056986,120]
[342804486,1732143122163,-1803.88,0.00056986,120]
[342804487,1732143122174,-875.42,0.00056986,120]
[342804488,1732143122185,-908.45,0.00056986,120]
[342804489,1732143122196,-1745.98,0.00056986,120]
[342804490,1732143122206,-643.69,0.00056986,120]
[342804491,1732143122217,-659.6,0.00056986,120]
[342804492,1732143122230,-500.0,0.00056986,120]
[342804493,1732143122240,-1212.54,0.00056986,120]
[342804494,1732143122250,-2042.25,0.00056986,120]
[342804495,1732143122260,-828.06,0.00056986,120]
[342804496,1732143122272,-646.63,0.00056986,120]
[342804497,1732143122284,-806.31,0.00056986,120]
[342804498,1732143122294,-500.0,0.00056986,120]
[342804499,1732143122305,-1287.88,0.00056986,120]
[342804500,1732143122315,-1410.77,0.00056986,120]
[342804501,1732143122326,-500.0,0.00056986,120]
[342804502,1732143122336,-500.0,0.00056986,120]
[342804503,1732143122347,-623.91,0.00056986,120]
[342804504,1732143122357,-500.0,0.00056986,120]
[342804505,1732143122367,-500.0,0.00056986,120]
[342804506,1732143122377,-766.21,0.00056986,120]
[342804507,1732143122387,-1000.52,0.00056986,120]
[342804508,1732143122396,-394.23653177,0.00056986,120]
[342804509,1732143122407,-500.0,0.00056986,120]
[342804510,1732143122417,-1013.49,0.00056986,120]
[342804511,1732143122427,-500.0,0.00056986,120]
[342804512,1732143122677,-811.56,0.00056986,120]
[342804513,1732143122696,-500.0,0.00056986,120]
[342804514,1732143122705,-3361.2,0.00056986,120]
[342804515,1732143122714,-1185.33,0.00056986,120]